{"text_format":"3","workbook":"xlsx","n_sheets":5,"sheets":["COMECE AQUI - LEIA ATENTAMENTE ","INSTRUÇÕES DE USO","DIMENSIONAMENTO","Dados","RESULTADO"],"not_rendered":{"images":11},"read":"whole","date_system":"1900"}

{"sheet":"COMECE AQUI - LEIA ATENTAMENTE ","index":0,"n_rows":6,"n_cols":13,"rows_kept":6,"merged":[[0,1,2,21],[4,1,4,10],[4,12,4,21],[5,1,18,10],[5,12,18,21]]}
[null,"CALCULADORA BACKUP FOX ESS"]
[]
[]
[]
[null,"TERMOS DE USO E RECOMENDAÇÕES",{"$nulls":10},"OS CÁLCULOS DESTE ARQUIVO NÃO CONSIDERAM:"]
[null,"A Calculadora de Backup da Fox ESS foi desenvolvida para auxiliar, de forma educativa, no pré-dimensionamento de soluções de backup de energia. Ressaltamos que os resultados gerados são apenas estimativas e não substituem um projeto técnico profissional. A Fox ESS não se responsabiliza por eventuais inadequações decorrentes do uso desta ferramenta. Para garantir que o sistema atenda plenamente às suas demandas, é indispensável a análise de um engenheiro ou especialista qualificado. Ter um sistema híbrido bem dimensionado é essencial para manter a continuidade de energia em aplicações residenciais, comerciais e industriais.\nA autonomia máxima considerada nesta ferramenta é de 24h.",{"$nulls":10},"- Alimentação das cargas por outras fontes (Ex. Fotovoltaico/Solar, Gerador Diesel, Etc);\n   \n- Coeficiente de simultaniedade das cargas (A planilha considera tudo ligado ao mesmo tempo);\n   \n- Tempo necessário e Corrente Recomendada para recarga das baterias."]

{"sheet":"INSTRUÇÕES DE USO","index":1,"n_rows":6,"n_cols":2,"rows_kept":6,"merged":[[0,1,2,10],[4,1,4,10],[5,1,18,10]]}
[null,"CALCULADORA BACKUP FOX ESS"]
[]
[]
[]
[null,"INSTRUÇÕES"]
[null,"Para o uso desta planilha, é extremamente importante que seja feito um levantamento prévio das cargas que serão alimentadas pelo sistema.\n\n1 - A planilha é previamente preenchida com dados de exemplo que devem ser alterados de acordo com os dados do cliente.\n2 - Na aba de Dimensionamento, selecione dentre as opções disponíveis, o tempo de autonomia desejado pelo cliente\n3 - Selecione o Tipo de Rede do cliente dentre as opções disponíveis.\n4 - Preencha a Lista de Equipamentos  nos campos editáveis (em roxo), de acordo com o levantamento feito. Ajuste os nomes dos aparelhos, potências, quantidades, o tempo de uso, o Fator de Potênica (FP -  cargas 100% reativas como Notebook e Roteador tem FP = 1) e a Corrente de Pico (Ip/In) conforme necessário.\nNOTA1: As células que ficarem amarelas e/ou vermelhas, servem como um mero indicativo de potência mais alta (acima de 1kW) ou consumo alto (acima de 5 kWh).\n5 - Após todas as informações preenchidas, a planilha apresenta na aba RESULTADO, o modelo de inversor e a quantidade sugerida, assim como a quantidade de baterias recomendadas no total. Agora é só conferir o kit com o distribuidor de sua preferência e ser feliz com a Fox ESS!\nNOTA2: Por padrão, a planilha considera DoD (Profundidade de Descarga) das baterias de 90%, e eficiência de 95%. A eficiência dos inversores varia conforme modelo.\nNOTA3: A calculadora considera o balanceamento das baterias por inversor (todos inversores devem ter a mesma quantidade de baterias entre si).\n\nLEMBRE-SE: Essa calculadora foi desenvolvida para auxiliar no pré-dimensionamento de soluções de backup de energia e ressaltamos que os resultados gerados são apenas estimativas e não substituem um projeto técnico profissional. Para garantir que o sistema atenda plenamente às suas demandas, é indispensável a análise de um engenheiro ou especialista qualificado. A Fox-ESS não se responsabiliza por eventuais inadequações decorrentes do uso desta ferramenta.\n"]

{"sheet":"DIMENSIONAMENTO","index":2,"n_rows":27,"n_cols":11,"rows_kept":27,"merged":[[0,1,3,11]]}
[null,"CALCULADORA BACKUP FOX ESS"]
[]
[]
[]
[null,null,"Campos Editáveis"]
[null,"Autonomia  ( Horas)",2]
[null,"Tipo de rede do Cliente:","Bifásica (127/220 V)"]
[null,"Aparelho","Potência Nominal [W]","Tensão Nominal [V]","Quantidade","Tempo Ligado [h]","FP","Ip/In","Potência Total [W]","Potência de Pico [kW]","Consumo diário [Wh]"]
[1,"Laptop",100,220,2,24,{"v":1,"d":"1.0"},{"v":1,"d":"1.0"},{"$f":"IFERROR(IF(Equipmentos[[#This Row],[Quantidade]]=\"\",\"\",Equipmentos[[#This Row],[Potência Nominal '[W']]]*Equipmentos[[#This Row],[Quantidade]]/Equipmentos[[#This Row],[FP]]),\"\")","v":200},{"$f":"Equipmentos[[#This Row],[Potência Total '[W']]]*Equipmentos[[#This Row],[Ip/In]]","v":200},{"$f":"IFERROR(IF(Equipmentos[[#This Row],[Quantidade]]=\"\",\"\",Equipmentos[[#This Row],[Potência Total '[W']]]*Equipmentos[[#This Row],[Tempo Ligado '[h']]]),\"\")","v":4800}]
[2,"Modem / Wifi / Internet",20,220,1,24,{"v":1,"d":"1.0"},{"v":1,"d":"1.0"},{"$f":"IFERROR(IF(Equipmentos[[#This Row],[Quantidade]]=\"\",\"\",Equipmentos[[#This Row],[Potência Nominal '[W']]]*Equipmentos[[#This Row],[Quantidade]]/Equipmentos[[#This Row],[FP]]),\"\")","v":20},{"$f":"Equipmentos[[#This Row],[Potência Total '[W']]]*Equipmentos[[#This Row],[Ip/In]]","v":20},{"$f":"IFERROR(IF(Equipmentos[[#This Row],[Quantidade]]=\"\",\"\",Equipmentos[[#This Row],[Potência Total '[W']]]*Equipmentos[[#This Row],[Tempo Ligado '[h']]]),\"\")","v":480}]
[3,"Impressora",50,220,1,0,{"v":1,"d":"1.0"},{"v":1,"d":"1.0"},{"$f":"IFERROR(IF(Equipmentos[[#This Row],[Quantidade]]=\"\",\"\",Equipmentos[[#This Row],[Potência Nominal '[W']]]*Equipmentos[[#This Row],[Quantidade]]/Equipmentos[[#This Row],[FP]]),\"\")","v":50},{"$f":"Equipmentos[[#This Row],[Potência Total '[W']]]*Equipmentos[[#This Row],[Ip/In]]","v":50},{"$f":"IFERROR(IF(Equipmentos[[#This Row],[Quantidade]]=\"\",\"\",Equipmentos[[#This Row],[Potência Total '[W']]]*Equipmentos[[#This Row],[Tempo Ligado '[h']]]),\"\")","v":0}]
[4,"Luzes",15,220,10,6,{"v":1,"d":"1.0"},{"v":1,"d":"1.0"},{"$f":"IFERROR(IF(Equipmentos[[#This Row],[Quantidade]]=\"\",\"\",Equipmentos[[#This Row],[Potência Nominal '[W']]]*Equipmentos[[#This Row],[Quantidade]]/Equipmentos[[#This Row],[FP]]),\"\")","v":150},{"$f":"Equipmentos[[#This Row],[Potência Total '[W']]]*Equipmentos[[#This Row],[Ip/In]]","v":150},{"$f":"IFERROR(IF(Equipmentos[[#This Row],[Quantidade]]=\"\",\"\",Equipmentos[[#This Row],[Potência Total '[W']]]*Equipmentos[[#This Row],[Tempo Ligado '[h']]]),\"\")","v":900}]
[5,"TV",68,220,2,4,{"v":1,"d":"1.0"},{"v":1,"d":"1.0"},{"$f":"IFERROR(IF(Equipmentos[[#This Row],[Quantidade]]=\"\",\"\",Equipmentos[[#This Row],[Potência Nominal '[W']]]*Equipmentos[[#This Row],[Quantidade]]/Equipmentos[[#This Row],[FP]]),\"\")","v":136},{"$f":"Equipmentos[[#This Row],[Potência Total '[W']]]*Equipmentos[[#This Row],[Ip/In]]","v":136},{"$f":"IFERROR(IF(Equipmentos[[#This Row],[Quantidade]]=\"\",\"\",Equipmentos[[#This Row],[Potência Total '[W']]]*Equipmentos[[#This Row],[Tempo Ligado '[h']]]),\"\")","v":544}]
[6,"MicroOndas",800,220,1,0.3,{"v":1,"d":"1.0"},{"v":1,"d":"1.0"},{"$f":"IFERROR(IF(Equipmentos[[#This Row],[Quantidade]]=\"\",\"\",Equipmentos[[#This Row],[Potência Nominal '[W']]]*Equipmentos[[#This Row],[Quantidade]]/Equipmentos[[#This Row],[FP]]),\"\")","v":800},{"$f":"Equipmentos[[#This Row],[Potência Total '[W']]]*Equipmentos[[#This Row],[Ip/In]]","v":800},{"$f":"IFERROR(IF(Equipmentos[[#This Row],[Quantidade]]=\"\",\"\",Equipmentos[[#This Row],[Potência Total '[W']]]*Equipmentos[[#This Row],[Tempo Ligado '[h']]]),\"\")","v":240}]
[7,"Air Fryer",1500,220,0,0,{"v":1,"d":"1.0"},{"v":1,"d":"1.0"},{"$f":"IFERROR(IF(Equipmentos[[#This Row],[Quantidade]]=\"\",\"\",Equipmentos[[#This Row],[Potência Nominal '[W']]]*Equipmentos[[#This Row],[Quantidade]]/Equipmentos[[#This Row],[FP]]),\"\")","v":0},{"$f":"Equipmentos[[#This Row],[Potência Total '[W']]]*Equipmentos[[#This Row],[Ip/In]]","v":0},{"$f":"IFERROR(IF(Equipmentos[[#This Row],[Quantidade]]=\"\",\"\",Equipmentos[[#This Row],[Potência Total '[W']]]*Equipmentos[[#This Row],[Tempo Ligado '[h']]]),\"\")","v":0}]
[8,"Refrigerador",250,220,1,24,{"v":1,"d":"1.0"},{"v":1,"d":"1.0"},{"$f":"IFERROR(IF(Equipmentos[[#This Row],[Quantidade]]=\"\",\"\",Equipmentos[[#This Row],[Potência Nominal '[W']]]*Equipmentos[[#This Row],[Quantidade]]/Equipmentos[[#This Row],[FP]]),\"\")","v":250},{"$f":"Equipmentos[[#This Row],[Potência Total '[W']]]*Equipmentos[[#This Row],[Ip/In]]","v":250},{"$f":"IFERROR(IF(Equipmentos[[#This Row],[Quantidade]]=\"\",\"\",Equipmentos[[#This Row],[Potência Total '[W']]]*Equipmentos[[#This Row],[Tempo Ligado '[h']]]),\"\")","v":6000}]
[9,"Freezer",150,220,1,24,{"v":1,"d":"1.0"},{"v":1,"d":"1.0"},{"$f":"IFERROR(IF(Equipmentos[[#This Row],[Quantidade]]=\"\",\"\",Equipmentos[[#This Row],[Potência Nominal '[W']]]*Equipmentos[[#This Row],[Quantidade]]/Equipmentos[[#This Row],[FP]]),\"\")","v":150},{"$f":"Equipmentos[[#This Row],[Potência Total '[W']]]*Equipmentos[[#This Row],[Ip/In]]","v":150},{"$f":"IFERROR(IF(Equipmentos[[#This Row],[Quantidade]]=\"\",\"\",Equipmentos[[#This Row],[Potência Total '[W']]]*Equipmentos[[#This Row],[Tempo Ligado '[h']]]),\"\")","v":3600}]
[10,"Maquina Lavar",1500,220,1,1,{"v":1,"d":"1.0"},{"v":1,"d":"1.0"},{"$f":"IFERROR(IF(Equipmentos[[#This Row],[Quantidade]]=\"\",\"\",Equipmentos[[#This Row],[Potência Nominal '[W']]]*Equipmentos[[#This Row],[Quantidade]]/Equipmentos[[#This Row],[FP]]),\"\")","v":1500},{"$f":"Equipmentos[[#This Row],[Potência Total '[W']]]*Equipmentos[[#This Row],[Ip/In]]","v":1500},{"$f":"IFERROR(IF(Equipmentos[[#This Row],[Quantidade]]=\"\",\"\",Equipmentos[[#This Row],[Potência Total '[W']]]*Equipmentos[[#This Row],[Tempo Ligado '[h']]]),\"\")","v":1500}]
[11,"Chuveiro",7800,220,0,0.5,{"v":1,"d":"1.0"},{"v":1,"d":"1.0"},{"$f":"IFERROR(IF(Equipmentos[[#This Row],[Quantidade]]=\"\",\"\",Equipmentos[[#This Row],[Potência Nominal '[W']]]*Equipmentos[[#This Row],[Quantidade]]/Equipmentos[[#This Row],[FP]]),\"\")","v":0},{"$f":"Equipmentos[[#This Row],[Potência Total '[W']]]*Equipmentos[[#This Row],[Ip/In]]","v":0},{"$f":"IFERROR(IF(Equipmentos[[#This Row],[Quantidade]]=\"\",\"\",Equipmentos[[#This Row],[Potência Total '[W']]]*Equipmentos[[#This Row],[Tempo Ligado '[h']]]),\"\")","v":0}]
[12,"Ar Condicionado 9000 BTU",850,220,2,12,{"v":1,"d":"1.0"},{"v":1,"d":"1.0"},{"$f":"IFERROR(IF(Equipmentos[[#This Row],[Quantidade]]=\"\",\"\",Equipmentos[[#This Row],[Potência Nominal '[W']]]*Equipmentos[[#This Row],[Quantidade]]/Equipmentos[[#This Row],[FP]]),\"\")","v":1700},{"$f":"Equipmentos[[#This Row],[Potência Total '[W']]]*Equipmentos[[#This Row],[Ip/In]]","v":1700},{"$f":"IFERROR(IF(Equipmentos[[#This Row],[Quantidade]]=\"\",\"\",Equipmentos[[#This Row],[Potência Total '[W']]]*Equipmentos[[#This Row],[Tempo Ligado '[h']]]),\"\")","v":20400}]
[13,"Ar Condicionado 12000 BTU",1200,220,0,4,{"v":1,"d":"1.0"},{"v":1,"d":"1.0"},{"$f":"IFERROR(IF(Equipmentos[[#This Row],[Quantidade]]=\"\",\"\",Equipmentos[[#This Row],[Potência Nominal '[W']]]*Equipmentos[[#This Row],[Quantidade]]/Equipmentos[[#This Row],[FP]]),\"\")","v":0},{"$f":"Equipmentos[[#This Row],[Potência Total '[W']]]*Equipmentos[[#This Row],[Ip/In]]","v":0},{"$f":"IFERROR(IF(Equipmentos[[#This Row],[Quantidade]]=\"\",\"\",Equipmentos[[#This Row],[Potência Total '[W']]]*Equipmentos[[#This Row],[Tempo Ligado '[h']]]),\"\")","v":0}]
[14,"Aspirador de Pó",1400,220,0,0,{"v":1,"d":"1.0"},{"v":1,"d":"1.0"},{"$f":"IFERROR(IF(Equipmentos[[#This Row],[Quantidade]]=\"\",\"\",Equipmentos[[#This Row],[Potência Nominal '[W']]]*Equipmentos[[#This Row],[Quantidade]]/Equipmentos[[#This Row],[FP]]),\"\")","v":0},{"$f":"Equipmentos[[#This Row],[Potência Total '[W']]]*Equipmentos[[#This Row],[Ip/In]]","v":0},{"$f":"IFERROR(IF(Equipmentos[[#This Row],[Quantidade]]=\"\",\"\",Equipmentos[[#This Row],[Potência Total '[W']]]*Equipmentos[[#This Row],[Tempo Ligado '[h']]]),\"\")","v":0}]
[15,"Secador De cabelo",100,220,1,0,{"v":1,"d":"1.0"},{"v":1,"d":"1.0"},{"$f":"IFERROR(IF(Equipmentos[[#This Row],[Quantidade]]=\"\",\"\",Equipmentos[[#This Row],[Potência Nominal '[W']]]*Equipmentos[[#This Row],[Quantidade]]/Equipmentos[[#This Row],[FP]]),\"\")","v":100},{"$f":"Equipmentos[[#This Row],[Potência Total '[W']]]*Equipmentos[[#This Row],[Ip/In]]","v":100},{"$f":"IFERROR(IF(Equipmentos[[#This Row],[Quantidade]]=\"\",\"\",Equipmentos[[#This Row],[Potência Total '[W']]]*Equipmentos[[#This Row],[Tempo Ligado '[h']]]),\"\")","v":0}]
[16,"Outros",10000,220,0,0.5,{"v":1,"d":"1.0"},{"v":1,"d":"1.0"},{"$f":"IFERROR(IF(Equipmentos[[#This Row],[Quantidade]]=\"\",\"\",Equipmentos[[#This Row],[Potência Nominal '[W']]]*Equipmentos[[#This Row],[Quantidade]]/Equipmentos[[#This Row],[FP]]),\"\")","v":0},{"$f":"Equipmentos[[#This Row],[Potência Total '[W']]]*Equipmentos[[#This Row],[Ip/In]]","v":0},{"$f":"IFERROR(IF(Equipmentos[[#This Row],[Quantidade]]=\"\",\"\",Equipmentos[[#This Row],[Potência Total '[W']]]*Equipmentos[[#This Row],[Tempo Ligado '[h']]]),\"\")","v":0}]
[]
[{"$nulls":8},{"$f":"IF(E9=\"\",\"\",SUM(I9:I24)/1000)","v":{"v":5.056,"d":"5.06"}},{"$f":"IF(F9=\"\",\"\",SUM(J9:J24)/1000)","v":{"v":5.056,"d":"5.06"}},{"$f":"SUM(K9:K24)/1000","v":{"v":38.464,"d":"38.46"}}]
[{"$nulls":8},"Potência Nominal Total [kW]","Potência de Pico Total [kW]","Consumo diário Total [kWh]"]

{"sheet":"Dados","index":3,"n_rows":88,"n_cols":28,"rows_kept":88,"hidden":true}
[{"$nulls":26},384,27]
[null,"Nominal Voltage",null,null,"Fox ESS name","Max Power EPS [W]","Rated Voltage [V]","Peak Power (60s)  [W]","Picture","Efficiency","Bat Máx Current","Bat Input",null,"Model","Nom. Capacity","Nom. Power","Peak Power","DoD","RT Efficiency","Voltage","Nom. Current","Picture","Recom. Charge Cur."]
[null,380,null,null,"H1-5.0-E-G2",5000,220,5500,{"$error":"#VALUE!"},{"v":0.97,"d":"97.00%"},50,1,null,"EP5",5.18,{"$f":"O3","v":5.18},{"$f":"Bateries[[#This Row],[Nom. Power]]*2.41","v":12.4838},{"v":0.9,"d":"90%"},{"v":0.95,"d":"95%"},192,27,{"$error":"#VALUE!"},{"$f":"Bateries[[#This Row],[Nom. Current]]/2","v":13.5}]
[null,220,null,null,"KH7.5",7500,220,10000,{"$error":"#VALUE!"},{"v":0.972,"d":"97.20%"},50,1,null,"EP11",10.36,{"$f":"O4","v":10.36},{"$f":"Bateries[[#This Row],[Nom. Power]]*2.41","v":24.9676},{"v":0.9,"d":"90%"},{"v":0.95,"d":"95%"},384,27,{"$error":"#VALUE!"},{"$f":"Bateries[[#This Row],[Nom. Current]]/2","v":13.5}]
[null,127,null,null,"KH10.5",10500,220,15000,{"$error":"#VALUE!"},{"v":0.972,"d":"97.20%"},50,1,{"$nulls":9}," "]
[{"$nulls":4},"H1-5.7-US",5700,"127/220",7695,{"$error":"#VALUE!"},{"v":0.97,"d":"97.00%"},50,1,{"$nulls":9}," "]
[null,"Grid Type",null,null,"H1-7.5-US",7500,"127/220",10125,{"$error":"#VALUE!"},{"v":0.97,"d":"97.00%"},50,1,{"$nulls":9}," "]
[null,"Monofásica (220 V)",null,null,"H1-11.4-US",11400,"127/220",15389,{"$error":"#VALUE!"},{"v":0.97,"d":"97.00%"},50,1,{"$nulls":9}," "]
[null,"Bifásica (127/220 V)",null,null,"H3-PRO-11.5",11500,220,12600,{"$error":"#VALUE!"},{"v":0.973,"d":"97.30%"},50,2,null,"kWh required:",{"$f":"IF(DIMENSIONAMENTO!K26=0,\"\",DIMENSIONAMENTO!K26/24*DIMENSIONAMENTO!C6)","v":3.2053333333333334}]
[null,"Trifásica (220/380 V)",null,null,"H3-PRO-20.0",20000,380,24000,{"$error":"#VALUE!"},{"v":0.973,"d":"97.30%"},50,2]
[null,"Trifásica (127/220 V)",null,null,"H3-PRO-17.3",17300,220,19000,{"$error":"#VALUE!"},{"v":0.973,"d":"97.30%"},50,2,null,"Qty","Capacity EP5","Power EP5","Peak Power EP5","Efficiency EP5","Capacity EP11","Power EP11","Peak Power EP11","Efficieny EP11"]
[{"$nulls":4},"H3-PRO-30.0",30000,380,36000,{"$error":"#VALUE!"},{"v":0.973,"d":"97.30%"},50,2]
[null,"Other Values",{"$nulls":11},1,{"$f":"$P$3*$R$3*$S$3*P16","v":{"v":4.4289,"d":"4.43"}},{"$f":"ROUNDDOWN(_xlfn.LET(\n    _xlpm.entradas, IF(ISNUMBER(MATCH($H$88,$E$9:$E$12,0)),2,1),\n    _xlpm.I_banco, $U$3*$P$16,\n    _xlpm.I_inversor, VLOOKUP($H$88,$E$2:$L$12,7,0)*_xlpm.entradas*$I$88,\n    $T$3*MIN(_xlpm.I_banco,_xlpm.I_inversor)/1000\n),\n2\n)","v":5.18},{"$f":"BatCalc[[#This Row],[Power EP5]]*2.41","v":{"v":12.4838,"d":"12.48"}},{"$f":"$S$3","v":{"v":0.95,"d":"95%"}},{"$f":"$P$4*$R$4*$S$4*T16","v":{"v":8.8578,"d":"8.86"}},{"$f":"ROUNDDOWN(\n_xlfn.LET(\n    _xlpm.entradas, IF(ISNUMBER(MATCH($H$88,$E$9:$E$12,0)),2,1),\n    _xlpm.corrente_banco, $U$4*$T$16,\n    _xlpm.corrente_inversores, VLOOKUP($H$88,$E$2:$L$12,7,0)*_xlpm.entradas*$I$88,\n    $T$4*MIN(_xlpm.corrente_banco,_xlpm.corrente_inversores)/1000\n),\n2\n)","v":10.36},{"$f":"BatCalc[[#This Row],[Power EP11]]*2.41","v":{"v":24.9676,"d":"24.97"}},{"$f":"$S$4","v":{"v":0.95,"d":"95%"}}]
[null,1000,null,null,"Fox ESS name","Tech espc.","Nominal Voltage","Column1","Weight","Column2","Picture"]
[{"$nulls":4},"HV Junction-Box","-","-","-","-","-",{"$error":"#VALUE!"},null,null,"Battery per Inv input",null,{"$f":"IFERROR(ROUNDUP(IF(OR(H88=E9,H88=E10,H88=E11,H88=E12),ROUNDUP(P16/I88,0)*I88/RESULTADO!C10/2,RESULTADO!C13/RESULTADO!C10),0),\"\")","v":1},{"$nulls":3},{"$f":"ROUNDUP(IF(OR(H88=E9,H88=E10,H88=E11,H88=E12),RESULTADO!C15/RESULTADO!C10/2,RESULTADO!C15/RESULTADO!C10),0)","v":1}]
[null,1,null,null,"AI Link (A-1000)","-","-","-","-","-",{"$error":"#VALUE!"},null,null,"Qty:",null,{"$f":"ROUNDUP(\n_xlfn.LET(\n    _xlpm.capacidade, VLOOKUP(\"EP5\",$N$2:$W$7,2,0),\n    _xlpm.dod, VLOOKUP(\"EP5\",$N$2:$W$7,5,0),\n    _xlpm.eficiencia, VLOOKUP(\"EP5\",$N$2:$W$7,6,0),\n    O9/(_xlpm.capacidade*_xlpm.dod*_xlpm.eficiencia)\n)    /$I$88,0)*$I$88","v":1},{"$nulls":3},{"$f":"ROUNDUP(\n_xlfn.LET(\n    _xlpm.capacidade, VLOOKUP(\"EP11\",$N$2:$W$7,2,0),\n    _xlpm.dod, VLOOKUP(\"EP11\",$N$2:$W$7,5,0),\n    _xlpm.eficiencia, VLOOKUP(\"EP11\",$N$2:$W$7,6,0),\n    O9/(_xlpm.capacidade*_xlpm.dod*_xlpm.eficiencia)\n)    /$I$88,0)*$I$88","v":1}]
[null,2,null,null,"Quadro Baixa Tensão",{"$nulls":5},{"$error":"#VALUE!"}]
[null,3,null,null,"Fox Hub G2",{"$nulls":5},{"$error":"#VALUE!"}]
[null,4]
[]
[null,"Bat Autonomy"]
[null,1]
[null,2]
[null,3]
[null,4,{"$nulls":5},"Grid Selected","kW required:"]
[null,5,{"$nulls":5},{"$f":"DIMENSIONAMENTO!C7","v":"Bifásica (127/220 V)"},{"$f":"DIMENSIONAMENTO!I26*1000","v":{"v":5056,"d":"5056.00"}}]
[null,6]
[null,7,{"$nulls":3},"REF","QTY","Single Phase","Split phase","3x 220","3x 380"]
[null,8,{"$nulls":3},1,1,{"$f":"F3*J3","v":4850},{"$f":"$F$6*G29*J6","v":5529},{"$f":"$F$9*G29*J9","v":{"v":11189.5,"d":"11190"}},{"$f":"$F$10*G29*J10","v":19460}]
[null,10,{"$nulls":3},2,2,null,null,{"$f":"J29*G30","v":22379},{"$f":"K29*G30","v":38920}]
[null,12,{"$nulls":3},3,3]
[null,18,{"$nulls":3},4,4]
[null,24,{"$nulls":3},5,1,{"$f":"F4*J4","v":7290},{"$f":"$F$7*G33*J7","v":7275}]
[{"$nulls":5},6,2,{"$f":"H$33*$G34","v":14580},{"$f":"I33*G34","v":14550}]
[{"$nulls":5},7,3]
[{"$nulls":5},8,4]
[null,"Warnings:","Reason",null,null,9,5]
[null,"NÃO RECOMENDADO PARA ESTA APLICAÇÃO","Too much Power",null,null,10,1,{"$f":"F5*J5","v":10206},{"$f":"F8*J8","v":11058},{"$f":"$F$11*G38*J11","v":{"v":16832.899999999998,"d":"16833"}},{"$f":"$F$12*G38*J12","v":29190}]
[null,"NÃO INDICADO PARA OPERAÇÃO EM BACKUP OU OFF-GRID","Too much Power",null,null,11,2,{"$f":"H$38*$G39","v":20412},{"$f":"I$38*$G39","v":22116},{"$f":"$J$38*G39","v":{"v":33665.799999999996,"d":"33666"}},{"$f":"$K$38*G39","v":58380}]
[null,"PARALELISMO PERMITIDO APENAS  COM INCLUSÃO DO FOX HUB (VERIFIQUE COMPATIBILIDADE)","H1-US in Parallel",null,null,12,3,{"$f":"$H$38*G40","v":30618},{"$f":"I$38*$G40","v":33174},{"$f":"$J$38*G40","v":{"v":50498.7,"d":"50499"}},{"$f":"$K$38*G40","v":87570}]
[null,"PARALELISMO PERMITIDO APENAS  COM INCLUSÃO DO  AI LINK","H3-Pro in Parallel",null,null,13,4,40824,44232,{"v":67331.59999999999,"d":"67332"},116760]
[null,"PARALELISMO PERMITIDO APENAS  COM INCLUSÃO DO EPS BOX"," H3-E in Parallel",null,null,14,5,51030,55290,{"v":84164.49999999999,"d":"84165"},145950]
[null,"VERIFIQUE AS TENSÕES NOMINAIS DOS APARELHOS E TIPO DE REDE ","Grid type and Load Voltage incompatible",null,null,15,6,61236,66348,{"v":100997.4,"d":"100997"},175140]
[null,"PREENCHA O FATOR DE POTÊNCIA DE TODOS OS APARELHOS","PF not filled",null,null,16,7,71442,77406,{"v":117830.29999999999,"d":"117830"},204330]
[null,"PREENCHA A CORRENTE DE PICO (Ip/In) DE TODOS OS APARELHOS","Peak Current not filled",null,null,17,8,81648,88464,{"v":134663.19999999998,"d":"134663"},233520]
[null,"PREENCHA A TENSÃO NOMINAL DE TODOS OS APARELHOS","Load voltage not filled",null,null,18,9,91854,99522,{"v":151496.09999999998,"d":"151496"},262710]
[null,"MÁXIMO DE 4 BATERIAS POR INVERSOR -  UTILIZE EXCLUSIVAMENTE BATERIAS EP11","Too much Authonomy",null,null,19,10,102060,110580,{"v":168328.99999999997,"d":"168329"},291900]
[null,"MÁXIMO DE 4 BATERIAS POR INVERSOR - AUMENTE  A QUANTIDADE DE INVERSORES (AUMENTE AS CARGAS EM KW)","Too much Authonomy",null,null," "]
[null,"MÁXIMO DE 8 BATERIAS POR INVERSOR - AUMENTE  A QUANTIDADE DE INVERSORES (AUMENTE AS CARGAS EM KW)","Too much Authonomy",null,null," ","Minimum Power:",{"$f":"MIN(IF(H29:H47>=$I$26,H29:H47))","v":7290},{"$f":"MIN(IF(I29:I47>=$I$26,I29:I47))","v":5529},{"$f":"MIN(IF(J29:J47>=$I$26,J29:J47))","v":11189.5},{"$f":"MIN(IF(K29:K47>=$I$26,K29:K47))","v":19460}]
[null,"JUNCTION BOX OBRIGATÓRIA APENAS EM CASO DE USO DA BATERIA EP5","Batteries in Parallel",null,null," ","REF:",{"$f":"_xlfn.XLOOKUP(\n    MIN(_xlfn._xlws.FILTER(InvtCalc[Single Phase],InvtCalc[Single Phase]>=$I$26)),\n    InvtCalc[Single Phase],\n    InvtCalc[REF]\n)","v":5},{"$f":"_xlfn.XLOOKUP(\n    MIN(_xlfn._xlws.FILTER(InvtCalc[Split phase],InvtCalc[Split phase]>=$I$26)),\n    InvtCalc[Split phase],\n    InvtCalc[REF]\n)","v":1},{"$f":"_xlfn.XLOOKUP(\n    MIN(_xlfn._xlws.FILTER(InvtCalc[3x 220],InvtCalc[3x 220]>=$I$26)),\n    InvtCalc[3x 220],\n    InvtCalc[REF]\n)","v":1},{"$f":"_xlfn.XLOOKUP(\n    MIN(_xlfn._xlws.FILTER(InvtCalc[3x 380],InvtCalc[3x 380]>=$I$26)),\n    InvtCalc[3x 380],\n    InvtCalc[REF]\n)","v":1}]
[null,"POTÊNCIA DAS BATERIAS INSUFICIENTE NO MODO OFF-GRID - CONSIDERE MAIS BATERIAS (AUMENTANDO A AUTONOMIA) OU OUTRAS FONTES DE ENERGIA (EX.: FOTOVOLTAICO)","Low Bat Power",null,null," ","Model:",{"$f":"_xlfn.IFS(H50<5,E3,H50<9,E4,H50<=19,E5)","v":"KH7.5"},{"$f":"_xlfn.IFS(I50<5,E6,I50<9,E7,I50<=19,E8)","v":"H1-5.7-US"},{"$f":"_xlfn.IFS(J50<5,E9,J50<9,\"ERRO\",J50<=19,E11)","v":"H3-PRO-11.5"},{"$f":"_xlfn.IFS(K50<5,E10,K50<9,\"ERRO\",K50<=19,E12)","v":"H3-PRO-20.0"}]
[null,"POTÊNCIA DAS BATERIAS EP5 INSUFICIENTE NO MODO OFF-GRID - CONSIDERE MAIS BATERIAS (AUMENTANDO A AUTONOMIA), OUTRAS FONTES DE ENERGIA (EX.: FOTOVOLTAICO), OU UTILIZE A EP11","Low Bat Power",null,null," ","Qty:",{"$f":"ROUNDUP(H49/VLOOKUP(H51,Inverters[#All],2,0),0)","v":1},{"$f":"ROUNDUP(I49/VLOOKUP(I51,Inverters[#All],2,0),0)","v":1},{"$f":"ROUNDUP(J49/VLOOKUP(J51,Inverters[#All],2,0),0)","v":1},{"$f":"ROUNDUP(K49/VLOOKUP(K51,Inverters[#All],2,0),0)","v":1}]
[null,"REDUZA A POTÊNCIA DE PICO DAS CARGAS, PARA VIABILIZAR O SISTEMA","Too much Peak Power",null,null," "]
[null,"PARA SISTEMAS COM BATERIAS EP5, CONSIDERE O USO DE 2 JUNCTION BOX","EP5 in Parallel",null,null," "]
[null,"CUIDADO COM O TEMPO DE CARGA DAS BATERIAS"," ",{"$nulls":4},"kWp required:",{"$f":"DIMENSIONAMENTO!J26*1000","v":{"v":5056,"d":"5056.00"}}]
[{"$nulls":5},"REF","Qty","Monofásica","Bifásica","Tri220","Tri380"]
[{"$nulls":5},1,1,{"$f":"H3*J3","v":5335},{"$f":"$H$6*G57","v":7695},{"$f":"H$9*G57*J9","v":{"v":12259.8,"d":"12260"}},{"$f":"$H$10*G57*J10","v":23352}]
[{"$nulls":5},2,2,null,null,{"$f":"J57*G58","v":{"v":24519.6,"d":"24520"}},{"$f":"K57*G58","v":46704}]
[{"$nulls":5},3,3]
[{"$nulls":5},4,4]
[{"$nulls":5},5,1,{"$f":"H4*J4","v":9720},{"$f":"$H$7*G61","v":10125}]
[{"$nulls":5},6,2,{"$f":"H61*$G62","v":19440},{"$f":"$H$7*G62","v":20250}]
[{"$nulls":5},7,3]
[{"$nulls":5},8,4]
[{"$nulls":5},9,5]
[{"$nulls":5},10,1,{"$f":"H5*J5","v":14580},{"$f":"$H$8*G66*J8","v":{"v":14927.33,"d":"14927"}},{"$f":"$H$11*G66*J11","v":18487},{"$f":"$H$12*G66*J12","v":35028}]
[{"$nulls":5},11,2,{"$f":"$H$66*$G67","v":29160},{"$f":"$I$66*G67","v":{"v":29854.66,"d":"29855"}},{"$f":"$J$66*G67","v":36974},{"$f":"$K$66*G67","v":70056}]
[{"$nulls":5},12,3,{"$f":"$H$66*$G68","v":43740},{"$f":"$I$66*G68","v":{"v":44781.99,"d":"44782"}},{"$f":"$J$66*G68","v":55461},{"$f":"$K$66*G68","v":105084}]
[{"$nulls":5},13,4,58320,{"v":59709.32,"d":"59709"},73948,140112]
[{"$nulls":5},14,5,72900,{"v":74636.65,"d":"74637"},92435,175140]
[{"$nulls":5},15,6,87480,{"v":89563.98,"d":"89564"},110922,210168]
[{"$nulls":5},16,7,102060,{"v":104491.31,"d":"104491"},129409,245196]
[{"$nulls":5},17,8,116640,{"v":119418.64,"d":"119419"},147896,280224]
[{"$nulls":5},18,9,131220,{"v":134345.97,"d":"134346"},166383,315252]
[{"$nulls":5},19,10,145800,{"v":149273.3,"d":"149273"},184870,350280]
[]
[{"$nulls":6},"Minimum Power:",{"$f":"MIN(IF(InvCalcPeak[Monofásica]>=$I$55,InvCalcPeak[Monofásica]))","v":5335},{"$f":"MIN(IF(InvCalcPeak[Bifásica]>=$I$55,InvCalcPeak[Bifásica]))","v":7695},{"$f":"MIN(IF(InvCalcPeak[Tri220]>=$I$55,InvCalcPeak[Tri220]))","v":12259.8},{"$f":"MIN(IF(InvCalcPeak[Tri380]>=$I$55,InvCalcPeak[Tri380]))","v":23352}]
[{"$nulls":6},"REF:",{"$f":"_xlfn.XLOOKUP(\n    MIN(_xlfn._xlws.FILTER(InvCalcPeak[Monofásica],InvCalcPeak[Monofásica]>=$I$26)),\n    InvCalcPeak[Monofásica],\n    InvCalcPeak[REF]\n)","v":1},{"$f":"_xlfn.XLOOKUP(\n    MIN(_xlfn._xlws.FILTER(InvCalcPeak[Bifásica],InvCalcPeak[Bifásica]>=$I$26)),\n    InvCalcPeak[Bifásica],\n    InvCalcPeak[REF]\n)","v":1},{"$f":"_xlfn.XLOOKUP(\n    MIN(_xlfn._xlws.FILTER(InvCalcPeak[Tri220],InvCalcPeak[Tri220]>=$I$26)),\n    InvCalcPeak[Tri220],\n    InvCalcPeak[REF]\n)","v":1},{"$f":"_xlfn.XLOOKUP(\n    MIN(_xlfn._xlws.FILTER(InvCalcPeak[Tri380],InvCalcPeak[Tri380]>=$I$26)),\n    InvCalcPeak[Tri380],\n    InvCalcPeak[REF]\n)","v":1}]
[{"$nulls":6},"Model:",{"$f":"_xlfn.IFS(H78<5,E3,H78<9,E4,H78<=19,E5)","v":"H1-5.0-E-G2"},{"$f":"_xlfn.IFS(I78<5,E6,I78<9,E7,I78<=19,E8)","v":"H1-5.7-US"},{"$f":"_xlfn.IFS(J78<5,E9,J78<9,\"ERRO\",J78<=19,E11)","v":"H3-PRO-11.5"},{"$f":"_xlfn.IFS(K78<5,E10,K78<9,\"ERRO\",K78<=19,E12)","v":"H3-PRO-20.0"}]
[{"$nulls":6},"Qty:",{"$f":"VLOOKUP(H78,InvCalcPeak[#All],2,0)","v":1},{"$f":"VLOOKUP(I78,InvCalcPeak[#All],2,0)","v":1},{"$f":"VLOOKUP(J78,InvCalcPeak[#All],2,0)","v":1},{"$f":"VLOOKUP(K78,InvCalcPeak[#All],2,0)","v":1}]
[]
[]
[]
[{"$nulls":7},"Check Peak:"]
[{"$nulls":6},"Calc over Nom Power:",{"$f":"_xlfn.IFS(DIMENSIONAMENTO!C7=Dados!B8,Dados!H51,DIMENSIONAMENTO!C7=Dados!B9,Dados!I51,DIMENSIONAMENTO!C7=Dados!B10,Dados!K51,DIMENSIONAMENTO!C7=Dados!B11,Dados!J51)","v":"H1-5.7-US"},{"$f":"_xlfn.IFS(DIMENSIONAMENTO!C7=Dados!B8,Dados!H52,DIMENSIONAMENTO!C7=Dados!B9,Dados!I52,DIMENSIONAMENTO!C7=Dados!B10,Dados!K52,DIMENSIONAMENTO!C7=Dados!B11,Dados!J52)","v":1}]
[{"$nulls":6},"Calc over Peak Power:",{"$f":"_xlfn.IFS(DIMENSIONAMENTO!C7=Dados!B8,H79,DIMENSIONAMENTO!C7=Dados!B9,Dados!I79,DIMENSIONAMENTO!C7=Dados!B10,Dados!K79,DIMENSIONAMENTO!C7=Dados!B11,Dados!J79)","v":"H1-5.7-US"},{"$f":"_xlfn.IFS(DIMENSIONAMENTO!C7=Dados!B8,Dados!H80,DIMENSIONAMENTO!C7=Dados!B9,Dados!I80,DIMENSIONAMENTO!C7=Dados!B10,Dados!K80,DIMENSIONAMENTO!C7=Dados!B11,Dados!J80)","v":1},null,{"$f":"MAX(VLOOKUP(H85,Inverters[#All],4,0),VLOOKUP(H86,Inverters[#All],4,0))","v":7695}]
[]
[{"$nulls":6},"Final Decision",{"$f":"IF(VLOOKUP(H85,Inverters[#All],4,0)*I85>I55,H85,H86)","v":"H1-5.7-US"},{"$f":"MAX(I85:I86)","v":1}]

{"sheet":"RESULTADO","index":4,"n_rows":32,"n_cols":13,"rows_kept":32,"merged":[[0,1,3,13],[5,4,5,6],[5,8,10,9],[5,10,6,10],[5,11,17,11],[5,12,8,12],[5,13,8,13],[6,1,6,2],[6,4,6,6],[7,1,8,1],[7,2,8,2],[7,4,8,6],[8,10,10,10],[9,4,10,6],[9,12,13,13],[11,4,11,6],[11,8,12,10],[12,4,13,6],[13,1,13,2],[13,8,13,9],[14,8,17,9],[14,12,17,13]]}
[null,"CALCULADORA BACKUP FOX ESS"]
[]
[]
[]
[]
[{"$nulls":4},"AVISOS:",{"$nulls":3},{"$f":"VLOOKUP(B10,Dados!E2:L12,5,0)","v":{"$error":"#VALUE!"}},{"$nulls":3},{"$f":"IFERROR(_xlfn.IFS(E8=Dados!B40,Dados!K18,E8=Dados!B41,Dados!K16),\"\")","v":""}]
[null,"Lista de Produtos (Total Fox ESS)",null,null,{"$f":"_xlfn.IFNA(\n   _xlfn.IFS(\n      AND(OR(B10=Dados!E9,B10=Dados!E10,B10=Dados!E11,B10=Dados!E12),(Dados!T16/RESULTADO!C10)>8),Dados!B49,\n      AND(OR(B10=Dados!E3,B10=Dados!E4,B10=Dados!E5,B10=Dados!E6,B10=Dados!E7,B10=Dados!E8),(Dados!T16/RESULTADO!C10)>4),Dados!B48,\n      AND(Dados!P15>1,Dados!T15<2),Dados!B50,\n      AND(OR(B10=Dados!E9,B10=Dados!E10,B10=Dados!E11,B1=Dados!E12),C15/C10<3,Dados!P16/C10>2,C13<>\"\"),Dados!B50,\n      AND(OR(B10=Dados!E9,B10=Dados!E10,B10=Dados!E11,B1=Dados!E12),C15<5,C13>5,C13<>\"\"),Dados!B54\n   ),\n   \"\"\n)","v":""}]
[null,"Modelo","Quantidade",null,{"$f":"_xlfn.IFS(C10>10,Dados!B38,C10<2,\"\",C10>4,Dados!B39,B10=Dados!E6,Dados!B40,B10=Dados!E7,Dados!B40,B10=Dados!E8,Dados!B40,B10=Dados!E9,Dados!B41,B10=Dados!E11,Dados!B41,B10=Dados!E10,Dados!B41,B10=Dados!E12,Dados!B41,B10=Dados!E3,\"\",B10=Dados!E4,\"\",B10=Dados!E5,\"\")","v":""},{"$nulls":5},{"$f":"IF(M6=\"\",\"\",\"+\")","v":""}]
[]
[null,{"$f":"Dados!H88","v":"H1-5.7-US"},{"$f":"Dados!I88","v":1},null,{"$f":"_xlfn.IFS(\n   COUNTBLANK(DIMENSIONAMENTO!H8:H24)>0, Dados!B45,\n   COUNTBLANK(DIMENSIONAMENTO!D8:D24)>0, Dados!B46,\n   COUNTBLANK(DIMENSIONAMENTO!G8:G24)>0, Dados!B44,\n   OR(\n      AND(DIMENSIONAMENTO!C7=Dados!B8, OR(COUNTIF(Equipmentos[Tensão Nominal '[V']],127)>0, COUNTIF(Equipmentos[Tensão Nominal '[V']],380)>0)),\n      AND(DIMENSIONAMENTO!C7=Dados!B9, COUNTIF(Equipmentos[Tensão Nominal '[V']],380)>0),\n      AND(DIMENSIONAMENTO!C7=Dados!B10, COUNTIF(Equipmentos[Tensão Nominal '[V']],127)>0),\n      AND(DIMENSIONAMENTO!C7=Dados!B11, COUNTIF(Equipmentos[Tensão Nominal '[V']],380)>0)\n   ), Dados!B43,\n   TRUE, \"\"\n)","v":""}]
[null,{"$f":"IFERROR(IF(OR(Dados!P15>1,Dados!T15>1),Dados!E15,\"\"),\"\")","v":""},{"$f":"IF(\n    B11<>\"HV Junction-Box\",\n    \"\",\n    IFERROR(\n        IF(\n            OR(\n                AND(N($C$13)>0, N($C$13)/N($C$10)=3),\n                AND(N($C$15)>0, N($C$15)/N($C$10)=3)\n            ),\n            $C$10,\n            _xlfn.LET(\n                _xlpm.inversores, N($C$10),\n                _xlpm.entradas, N(VLOOKUP(B10,Inverters[#All],8,0)),\n                _xlpm.total_bat, N($C$13)+N($C$15),\n                MIN(INT(_xlpm.total_bat/2), _xlpm.entradas*_xlpm.inversores)\n            )\n        ),\n        \"\"\n    )\n)","v":""}]
[null,{"$f":"IFERROR(_xlfn.IFS(E8=Dados!B40,Dados!E18,E8=Dados!B41,Dados!E16),\"\")","v":""},{"$f":"IF(B12=\"\",\"\",\"1.00\")","v":""},null,"DICAS:",{"$nulls":3},{"$f":"IF(C11=\"\",\"\",Dados!K15)","v":""}]
[null,{"$f":"IF(Dados!P16/C10<5,Dados!N3,\"\")","v":"EP5"},{"$f":"IF(B13=\"\",\"\",Dados!P16)","v":1},null,{"$f":"_xlfn.IFNA(_xlfn.IFS(C18>=F22,Dados!B51,\nC18>=F18,Dados!B52,\nOR(Dados!I88>Dados!I85,Dados!H88<>Dados!H85),Dados!B53),\"\")","v":""}]
[null,{"$f":"IF(B13<>\"\",\"OU\",\"\")","v":"OU"}]
[null,{"$f":"Dados!N4","v":"EP11"},{"$f":"Dados!T16","v":1},{"$nulls":5},{"$f":"IF(B13=\"\",\"\",VLOOKUP(B13,Dados!N2:V7,9,0))","v":{"$error":"#VALUE!"}},{"$nulls":3},{"$f":"IF(B15=\"\",\"\",VLOOKUP(B15,Dados!N2:V7,9,0))","v":{"$error":"#VALUE!"}}]
[{"$nulls":4},"Potência Alcançada (Inversor) [kW]",{"$f":"IFERROR(VLOOKUP(B10,Inverters[#All],MATCH(Inverters[[#Headers],[Max Power EPS '[W']]],Inverters[#Headers],0),FALSE)*C10/1000*VLOOKUP(B10,Inverters[#All],6,0),\"\")","v":{"v":5.529,"d":"5.53"}}]
[{"$nulls":10},{"$f":"B14","v":"OU"}]
[null,"Potência Necessária (kW)",{"$f":"DIMENSIONAMENTO!I26","v":{"v":5.056,"d":"5.06"}},null,"Potência Alcançada EP5 [kW]",{"$f":"IF(C13=\"\",\"\",Dados!P13)","v":5.18}]
[null,"Autonomia Desejada [h]",{"$f":"DIMENSIONAMENTO!C6","v":2},null,"Autonomia Alcançada (EP5 - plena carga) [h]",{"$f":"IF(C13=\"\",\"\",F20*C19/C20)","v":{"v":2.7634567387687183,"d":"2.76"}}]
[null,"Capacidade Necessária (kWh)",{"$f":"IF(DIMENSIONAMENTO!K26=0,\"\",DIMENSIONAMENTO!K26/24*DIMENSIONAMENTO!C6)","v":{"v":3.2053333333333334,"d":"3.21"}},null,"Capacidade Alcançada (EP5) [kWh]",{"$f":"IFERROR(IF(C13=\"\",\"\",Dados!O13),\"\")","v":{"v":4.4289,"d":"4.43"}}]
[]
[{"$nulls":4},"Potência Alcançada EP11 [kW]",{"$f":"Dados!T13","v":10.36}]
[{"$nulls":4},"Autonomia Alcançada (EP11 - plena carga) [h]",{"$f":"F24*C19/C20","v":{"v":5.526913477537437,"d":"5.53"}}]
[{"$nulls":4},"Capacidade Alcançada (EP11) [kWh]",{"$f":"Dados!S13","v":{"v":8.8578,"d":"8.86"}}]
[{"$nulls":6},"        C15=2"]
[{"$nulls":6},"    ),384*27*2,"]
[{"$nulls":6},"    AND("]
[{"$nulls":6},"        OR(B10=Dados!D9,B10=Dados!D10,B10=Dados!D11,B10=Dados!D12),"]
[{"$nulls":6},"        C15=3"]
[{"$nulls":6},"    ),384*27+384*50,"]
[{"$nulls":6},"    TRUE,VLOOKUP(C15/C10,BatCalc[#All],7,0)*C10"]
[{"$nulls":6},")"]